fUST/lending_fUST_20250719
["ID","MTS","AMOUNT","RATE_DAILY","PERIOD"]
[373204950,1752905451126,-1089.26,0.00021917,2]
[373204951,1752905451137,-227.61573044,0.00021917,2]
[373204952,1752905451147,-410.668745,0.00021917,2]
[373204953,1752905451156,-410.668745,0.00021917,2]
[373204954,1752905451167,-548.26,0.00021917,2]
[373204955,1752905451176,-151.0,0.00021917,2]
[373204956,1752905451186,-497.33,0.00021917,2]
[373204957,1752905451195,-1127.2,0.00021917,2]
[373204958,1752905451205,-843.68,0.00021917,2]
[373204959,1752905451215,-3245.34,0.00021917,2]
[373204960,1752905451225,-2105.14,0.00021917,2]
[373204961,1752905451236,-796.7,0.00021917,2]
[373204962,1752905451246,-1080.79,0.00021917,2]
[373204963,1752905451256,-500.0,0.00021917,2]
[373204964,1752905451267,-500.0,0.00021917,2]
[373204965,1752905451277,-500.0,0.00021917,2]
[373204966,1752905451286,-379.78432667,0.00021917,2]
[373204967,1752905451296,-4129.85,0.00021917,2]
[373204968,1752905451306,-1314.16,0.00021917,2]
[373204969,1752905451316,-445.88138815,0.00021917,2]
[373204970,1752905451326,-921.73,0.00021917,2]
[373204971,1752905451336,-491.64,0.00021917,2]
[373204972,1752905451346,-460.0,0.00021917,2]
[373204973,1752905451356,-1882.27,0.00021917,2]
[373204974,1752905451365,-629.48,0.00021917,2]
[373204975,1752905451375,-466.23,0.00021917,2]
[373204976,1752905451386,-496.67,0.00021917,2]
[373204977,1752905451396,-1409.13,0.00021917,2]
[373204978,1752905451406,-2109.32,0.00021917,2]
[373204979,1752905451415,-368.74651188,0.00021917,2]
[373204980,1752905451425,-2616.74,0.00021917,2]
[373204981,1752905451435,-824.43,0.00021917,2]
[373204982,1752905451444,-506.58,0.00021917,2]
[373204983,1752905451459,-2019.14,0.00021917,2]
[373204984,1752905451468,-185.532593,0.00021918,2]
[373204985,1752905451479,-185.532593,0.00021918,2]
[373204986,1752905451488,-185.532593,0.00021918,2]
[373204987,1752905451585,-185.532593,0.00021918,2]
[373204988,1752905451596,-185.532593,0.00021918,2]
[373204989,1752905451606,-185.532593,0.00021918,2]
[373204990,1752905451616,-150.0,0.00021918,2]
[373204991,1752905451625,-200.36536703,0.00021918,2]
[373204992,1752905451635,-150.26780501,0.00021918,2]
[373204993,1752905451645,-488.81126468,0.00021939,2]
[373204994,1752905451654,-160.87106772,0.0002194,2]
[373204995,1752905451664,-1752.0,0.0002194,2]
[373204996,1752905451674,-1752.0,0.0002194,2]
[373204997,1752905451684,-1752.0,0.0002194,2]
[373204998,1752905451693,-1752.0,0.0002194,2]
[373204999,1752905451703,-1752.0,0.0002194,2]
[373205000,1752905451713,-1752.0,0.0002194,2]
[373205001,1752905451723,-1752.0,0.0002194,2]
[373205002,1752905451733,-1752.0,0.0002194,2]
[373205003,1752905451743,-1752.0,0.0002194,2]
[373205004,1752905451752,-154.0,0.0002194,2]
[373205005,1752905451762,-702.10688905,0.0002194,2]
[373205006,1752905451771,-155.38041295,0.0002194,2]
[373205007,1752905451781,-324.0,0.0002194,2]
[373205008,1752905451790,-324.0,0.0002194,2]
[373205009,1752905451802,-320.62303053,0.0002194,2]
[373205010,1752905451812,-951.0,0.00021951,2]
[373205011,1752905451821,-151.0,0.00021959,7]
[373205012,1752905451831,-253.751263,0.00021959,7]
[373205013,1752905451840,-253.751263,0.00021959,7]
[373205014,1752905451850,-151.0,0.00021959,7]
[373205015,1752905451859,-151.0,0.00021959,7]
[373205016,1752905451869,-228.289233,0.00021959,7]
[373205017,1752905451879,-228.289233,0.00021959,7]
[373205018,1752905451889,-309.301731,0.00021959,7]
[373205019,1752905451900,-309.301731,0.00021959,7]
[373205020,1752905451919,-151.0,0.00021959,7]
[373205021,1752905451929,-151.0,0.00021959,7]
[373205022,1752905451939,-155.803682,0.00021959,7]
[373205023,1752905451950,-159.334252,0.0002199,7]
[373205024,1752905451960,-151.0,0.0002199,7]
[373205025,1752905451969,-151.0,0.0002199,7]
[373205026,1752905451979,-179.790355,0.0002199,7]
[373205027,1752905451989,-2925.47014367,0.00022,4]
[373205028,1752905451999,-2382.15,0.00022,7]
[373205029,1752905452009,-5978.43,0.00022,7]
[373205030,1752905452019,-20108.96,0.00022,7]
[373205031,1752905452028,-151.0,0.00022,7]
[373205032,1752905452038,-12612.80205064,0.00022,7]
[373205033,1752905452050,-476.34170116,0.00022,7]
[373205034,1752905452060,-151.0,0.00022,7]
[373205035,1752905452071,-214.52603969,0.00022,7]
[373205036,1752905452080,-151.0,0.00022,7]
[373205037,1752905452090,-153.370387,0.00022,7]
[373205038,1752905452101,-1292.0,0.0002201,2]
[373205039,1752905452112,-215.0738,0.00022024,2]
[373205040,1752905452123,-6635.69935498,0.00022028,2]
[373205041,1752905452133,-975.862606,0.0002205,8]
[373205042,1752905452144,-160.33965087,0.00022055,2]
[373205043,1752905452155,-160.33965087,0.00022055,2]
[373205044,1752905452165,-160.0,0.00022056,4]
[373205045,1752905452175,-600.0,0.00022057,2]
[373205046,1752905452186,-255.79144,0.00022074,2]
[373205047,1752905452199,-577.1515091,0.00022082,2]
[373205048,1752905452209,-577.1515091,0.00022082,2]
[373205049,1752905452220,-577.1515091,0.00022082,2]
[373205050,1752905452231,-951.0,0.00022094,2]
[373205051,1752905452242,-500.0,0.00022113,2]
[373205052,1752905452251,-255.79144,0.00022141,6]
[373205053,1752905452262,-4760.15730783,0.00022141,6]
[373205054,1752905452272,-755.31154811,0.00022191,2]
[373205055,1752905452283,-3384.54164202,0.00022191,2]
[373205056,1752905452293,-151.0,0.00022191,7]
[373205057,1752905452304,-386.078219,0.00022191,7]
[373205058,1752905452313,-386.078219,0.00022191,7]
[373205059,1752905452322,-1308.88,0.00022191,2]
[373205060,1752905452334,-1089.26,0.00022191,2]
[373205061,1752905452345,-548.26,0.00022191,2]
[373205062,1752905452355,-497.33,0.00022191,2]
[373205063,1752905452366,-754.84737034,0.00022191,2]
[373205064,1752905452377,-1127.2,0.00022191,2]
[373205065,1752905452387,-151.0,0.00022191,7]
[373205066,1752905452398,-843.68,0.00022191,2]
[373205067,1752905452407,-3245.34,0.00022191,2]
[373205068,1752905452416,-2105.14,0.00022191,2]
[373205069,1752905452426,-796.7,0.00022191,2]
[373205070,1752905452436,-1080.79,0.00022191,2]
[373205071,1752905452445,-151.862641,0.00022191,7]
[373205072,1752905452460,-151.315414,0.00022191,7]
[373205073,1752905452471,-4129.85,0.00022191,2]
[373205074,1752905452481,-1314.16,0.00022191,2]
[373205075,1752905452491,-921.73,0.00022191,2]
[373205076,1752905452502,-151.0,0.00022191,7]
[373205077,1752905452512,-491.64,0.00022191,2]
[373205078,1752905452522,-151.0,0.00022191,7]
[373205079,1752905452534,-523.88836597,0.00022191,2]
[373205080,1752905452544,-1882.27,0.00022191,2]
[373205081,1752905452555,-629.48,0.00022191,2]
[373205082,1752905452565,-151.0,0.00022191,7]
[373205083,1752905452575,-151.0,0.00022191,7]
[373205084,1752905452585,-174.020776,0.00022191,7]
[373205085,1752905452595,-466.23,0.00022191,2]
[373205086,1752905452605,-151.0,0.00022191,7]
[373205087,1752905452616,-185.532593,0.00022191,7]
[373205088,1752905452626,-185.532593,0.00022191,7]
[373205089,1752905452636,-496.67,0.00022191,2]
[373205090,1752905452646,-1409.13,0.00022191,2]
[373205091,1752905452656,-2109.32,0.00022191,2]
[373205092,1752905452666,-824.43,0.00022191,2]
[373205093,1752905452676,-2616.74,0.00022191,2]
[373205094,1752905452686,-506.58,0.00022191,2]
[373205095,1752905452696,-2019.14,0.00022191,2]
[373205096,1752905452706,-642.0,0.000222,2]
[373205097,1752905452716,-500.0,0.00022222,2]
[373205098,1752905452726,-800.0,0.0002224,2]
[373205099,1752905452736,-2200.0,0.00022274,2]
[373205100,1752905452745,-500.0,0.00022274,2]
[373205101,1752905452755,-600.0,0.00022284,2]
[373205102,1752905452765,-951.0,0.00022288,2]
[373205103,1752905452775,-25000.0,0.00022299,2]
[373205104,1752905452785,-657.02117599,0.000223,2]
[373205105,1752905452795,-760.0,0.00022316,2]
[373205106,1752905452805,-160.0,0.00022327,5]
[373205107,1752905452815,-255.79144,0.00022354,3]
[373205108,1752905452825,-951.0,0.0002238,2]
[373205109,1752905452835,-151.0,0.00022417,7]
[373205110,1752905452845,-151.0,0.00022417,7]
[373205111,1752905452854,-151.0,0.00022417,7]
[373205112,1752905452864,-151.0,0.00022417,7]
[373205113,1752905452874,-151.0,0.00022417,7]
[373205114,1752905452883,-151.0,0.00022417,7]
[373205115,1752905452893,-151.0,0.00022417,7]
[373205116,1752905452903,-222.460124,0.00022417,7]
[373205117,1752905452913,-4760.15730783,0.00022417,7]
[373205118,1752905452923,-1983.0,0.00022422,2]
[373205119,1752905452932,-153.0,0.00022438,2]
[373205120,1752905452942,-153.0,0.00022438,2]
[373205121,1752905452952,-153.0,0.00022438,2]
[373205122,1752905452962,-153.0,0.00022438,2]
[373205123,1752905452972,-255.79144,0.00022455,10]
[373205124,1752905452981,-151.0,0.00022465,7]
[373205125,1752905452992,-151.0,0.00022465,7]
[373205126,1752905453002,-151.847431,0.00022465,7]
[373205127,1752905453011,-1308.88,0.00022465,2]
[373205128,1752905453021,-1089.26,0.00022465,2]
[373205129,1752905453031,-548.26,0.00022465,2]
[373205130,1752905453040,-497.33,0.00022465,2]
[373205131,1752905453051,-1127.2,0.00022465,2]
[373205132,1752905453061,-151.0,0.00022465,7]
[373205133,1752905453071,-151.0,0.00022465,7]
[373205134,1752905453081,-843.68,0.00022465,2]
[373205135,1752905453092,-3245.34,0.00022465,2]
[373205136,1752905453102,-2105.14,0.00022465,2]
[373205137,1752905453112,-796.7,0.00022465,2]
[373205138,1752905453122,-1080.79,0.00022465,2]
[373205139,1752905453132,-4129.85,0.00022465,2]
[373205140,1752905453142,-1314.16,0.00022465,2]
[373205141,1752905453151,-1201.486897,0.00022465,7]
[373205142,1752905453161,-1201.486897,0.00022465,7]
[373205143,1752905453170,-921.73,0.00022465,2]
[373205144,1752905453180,-491.64,0.00022465,2]
[373205145,1752905453193,-1882.27,0.00022465,2]
[373205146,1752905453203,-629.48,0.00022465,2]
[373205147,1752905453213,-466.23,0.00022465,2]
[373205148,1752905453222,-496.67,0.00022465,2]
[373205149,1752905453230,-1409.13,0.00022465,2]
[373205150,1752905453239,-2109.32,0.00022465,2]
[373205151,1752905453249,-2616.74,0.00022465,2]
[373205152,1752905453258,-824.43,0.00022465,2]
[373205153,1752905453266,-506.58,0.00022465,2]
[373205154,1752905453275,-2019.14,0.00022465,2]
[373205155,1752905453283,-300.0,0.00022466,2]
[373205156,1752905453292,-151.0,0.00022469,7]
[373205157,1752905453303,-151.0,0.00022469,7]
[373205158,1752905453312,-152.06639,0.00022469,7]
[373205159,1752905453322,-151.0,0.00022469,7]
[373205160,1752905453331,-1292.0,0.00022477,2]
[373205161,1752905453341,-2269.88079758,0.000225,2]
[373205162,1752905453426,-2566.0,0.000225,2]
[373205163,1752905453443,-2566.0,0.000225,2]
[373205164,1752905453458,-2566.0,0.000225,2]
[373205165,1752905453468,-2566.0,0.000225,2]
[373205166,1752905453478,-2566.0,0.000225,2]
[373205167,1752905453488,-2566.0,0.000225,2]
[373205168,1752905453498,-2566.0,0.000225,2]
[373205169,1752905453508,-476.34170116,0.000225,7]
[373205170,1752905453518,-600.0,0.00022512,2]
[373205171,1752905453529,-1442.065117,0.0002254,5]
[373205172,1752905453539,-206.0,0.0002256,2]
[373205173,1752905453549,-1000.0,0.0002256,5]
[373205174,1752905453559,-255.79144,0.0002256,5]
[373205175,1752905453569,-6635.69935498,0.00022575,2]
[373205176,1752905453579,-1000.0,0.0002258,5]
[373205177,1752905453589,-151.0,0.00022594,5]
[373205178,1752905453599,-160.0,0.00022598,6]
[373205179,1752905453609,-1000.0,0.000226,5]
[373205180,1752905453619,-171.15023,0.00022603,2]
[373205181,1752905453629,-1724.49,0.00022613,5]
[373205182,1752905453638,-1000.0,0.0002262,5]
[373205183,1752905453648,-1292.0,0.00022625,2]
[373205184,1752905453658,-1000.0,0.0002264,5]
[373205185,1752905453668,-951.0,0.00022645,2]
[373205186,1752905453678,-951.0,0.00022651,2]
[373205187,1752905453688,-1000.0,0.0002266,5]
[373205188,1752905453697,-200.0,0.0002267,5]
[373205189,1752905453707,-1000.0,0.0002268,5]
[373205190,1752905453717,-4760.15730783,0.00022693,7]
[373205191,1752905453726,-1000.0,0.000227,5]
[373205192,1752905453736,-255.79144,0.000227,6]
[373205193,1752905453747,-12500.0,0.0002271,7]
[373205194,1752905453757,-2751.80906737,0.0002271,7]
[373205195,1752905453767,-151.0,0.0002271,7]
[373205196,1752905453777,-151.0,0.0002271,7]
[373205197,1752905453788,-151.0,0.0002271,7]
[373205198,1752905453799,-151.0,0.0002271,7]
[373205199,1752905453809,-151.0,0.0002271,7]
[373205200,1752905453819,-200.399393,0.0002271,7]
[373205201,1752905453828,-200.399393,0.0002271,7]
[373205202,1752905453838,-178.585793,0.0002271,7]
[373205203,1752905453848,-178.585793,0.0002271,7]
[373205204,1752905453858,-1724.49,0.00022713,5]
[373205205,1752905453869,-951.0,0.00022718,2]
[373205206,1752905453879,-725.3434561,0.0002272,2]
[373205207,1752905453889,-1308.88214508,0.00022739,2]
[373205208,1752905453899,-1089.46555018,0.00022739,2]
[373205209,1752905453909,-548.45289983,0.00022739,2]
[373205210,1752905453920,-497.42870809,0.00022739,2]
[373205211,1752905453930,-1127.43135918,0.00022739,2]
[373205212,1752905453941,-203.956326,0.00022739,7]
[373205213,1752905453951,-203.956326,0.00022739,7]
[373205214,1752905453961,-200.919079,0.00022739,7]
[373205215,1752905453971,-200.919079,0.00022739,7]
[373205216,1752905453981,-843.79420803,0.00022739,2]
[373205217,1752905453991,-3245.44013963,0.00022739,2]
[373205218,1752905454001,-2105.15653786,0.00022739,2]
[373205219,1752905454011,-796.93377737,0.00022739,2]
[373205220,1752905454021,-1080.91586007,0.00022739,2]
[373205221,1752905454031,-4129.8944805,0.00022739,2]
[373205222,1752905454041,-1314.39285396,0.00022739,2]
[373205223,1752905454052,-921.73289778,0.00022739,2]
[373205224,1752905454061,-491.64,0.00022739,2]
[373205225,1752905454071,-160.429221,0.00022739,7]
[373205226,1752905454081,-160.429221,0.00022739,7]
[373205227,1752905454091,-1882.36948123,0.00022739,2]
[373205228,1752905454101,-629.59453827,0.00022739,2]
[373205229,1752905454110,-496.82,0.00022739,2]
[373205230,1752905454120,-1409.13097285,0.00022739,2]
[373205231,1752905454130,-2109.39133478,0.00022739,2]
[373205232,1752905454140,-968.02673977,0.00022739,2]
[373205233,1752905454150,-824.46340774,0.00022739,2]
[373205234,1752905454160,-2616.84658348,0.00022739,2]
[373205235,1752905454170,-506.78700627,0.00022739,2]
[373205236,1752905454179,-2019.35132628,0.00022739,2]
[373205237,1752905454189,-410.668745,0.0002274,7]
[373205238,1752905454199,-410.668745,0.0002274,7]
[373205239,1752905454209,-151.0,0.0002274,7]
[373205240,1752905454219,-951.0,0.00022758,2]
[373205241,1752905454228,-1724.49,0.00022813,5]
[373205242,1752905454238,-951.0,0.00022863,2]
[373205243,1752905454248,-860.0,0.00022864,2]
[373205244,1752905454257,-151.0,0.00022865,7]
[373205245,1752905454267,-160.0,0.0002287,7]
[373205246,1752905454277,-161.05736502,0.0002287,5]
[373205247,1752905454287,-951.0,0.00022877,2]
[373205248,1752905454298,-9020.10447099,0.000229,7]
[373205249,1752905454309,-76425.42,0.000229,2]
[373205250,1752905454320,-151.0,0.000229,7]
[373205251,1752905454329,-151.0,0.000229,7]
[373205252,1752905454339,-179.790355,0.000229,7]
[373205253,1752905454349,-153.03289,0.000229,7]
[373205254,1752905454360,-253.751263,0.000229,7]
[373205255,1752905454371,-253.751263,0.000229,7]
[373205256,1752905454381,-151.0,0.000229,7]
[373205257,1752905454391,-151.0,0.000229,7]
[373205258,1752905454401,-228.289233,0.000229,7]
[373205259,1752905454412,-228.289233,0.000229,7]
[373205260,1752905454423,-309.301731,0.000229,7]
[373205261,1752905454433,-309.301731,0.000229,7]
[373205262,1752905454445,-270.138267,0.000229,7]
[373205263,1752905454455,-151.0,0.000229,7]
[373205264,1752905454466,-1125.8171,0.000229,2]
[373205265,1752905454478,-151.0,0.000229,7]
[373205266,1752905454489,-151.0,0.000229,7]
[373205267,1752905454499,-1292.0,0.00022907,2]
[373205268,1752905454511,-206.0,0.0002291,2]
[373205269,1752905454523,-1724.49,0.00022913,3]
[373205270,1752905454533,-255.79144,0.00022952,10]
[373205271,1752905454543,-4760.15730783,0.00022969,8]
[373205272,1752905454553,-451.08326721,0.0002298,2]
[373205273,1752905454562,-160.0,0.00023,3]
[373205274,1752905454572,-160.0,0.00023,3]
[373205275,1752905454582,-28374.26107473,0.00023,2]
[373205276,1752905454591,-5940.95805435,0.00023,2]
[373205277,1752905454601,-160.0,0.00023,3]
[373205278,1752905454611,-160.0,0.00023,3]
[373205279,1752905454620,-5978.43,0.00023,7]
[373205280,1752905454630,-20108.96,0.00023,7]
[373205281,1752905454640,-151.815318,0.00023,7]
[373205282,1752905454650,-151.0,0.00023,7]
[373205283,1752905454659,-151.0,0.00023,7]
[373205284,1752905454669,-151.0,0.00023,7]
[373205285,1752905454679,-151.0,0.00023,7]
[373205286,1752905454690,-155.697509,0.00023,7]
[373205287,1752905454699,-151.982926,0.00023,7]
[373205288,1752905454712,-151.0,0.00023,7]
[373205289,1752905454722,-151.0,0.00023,7]
[373205290,1752905454733,-151.0,0.00023,7]
[373205291,1752905454743,-215.124707,0.00023,7]
[373205292,1752905454752,-200.399393,0.00023,7]
[373205293,1752905454762,-200.399393,0.00023,7]
[373205294,1752905454772,-178.585793,0.00023,7]
[373205295,1752905454782,-178.585793,0.00023,7]
[373205296,1752905454792,-152.821105,0.00023,7]
[373205297,1752905454803,-386.078219,0.00023,7]
[373205298,1752905454812,-386.078219,0.00023,7]
[373205299,1752905454822,-410.668745,0.00023,7]
[373205300,1752905454832,-410.668745,0.00023,7]
[373205301,1752905454842,-255.79144,0.00023,14]
[373205302,1752905454852,-215.67360783,0.00023,3]
[373205303,1752905454862,-151.0,0.00023,7]
[373205304,1752905454872,-1125.8171,0.00023,2]
[373205305,1752905454881,-151.0,0.00023,7]
[373205306,1752905454891,-12612.80205064,0.00023,10]
[373205307,1752905454902,-150.0,0.00023,7]
[373205308,1752905454913,-230.94145789,0.00023,3]
[373205309,1752905454924,-160.0,0.00023,3]
[373205310,1752905454934,-151.0,0.00023,7]
[373205311,1752905454946,-160.0,0.00023,3]
[373205312,1752905454957,-151.0,0.00023,7]
[373205313,1752905454967,-151.0,0.00023,7]
[373205314,1752905454979,-839.454303,0.00023,3]
[373205315,1752905454989,-151.0,0.00023,7]
[373205316,1752905454999,-151.0,0.00023,7]
[373205317,1752905455009,-185.532593,0.00023,7]
[373205318,1752905455019,-185.532593,0.00023,7]
[373205319,1752905455029,-214.52603969,0.00023,10]
[373205320,1752905455039,-525.83049785,0.00023,3]
[373205321,1752905455050,-1724.49,0.00023013,3]
[373205322,1752905455059,-450.75950598,0.00023014,2]
[373205323,1752905455069,-683.87180556,0.00023067,2]
[373205324,1752905455155,-153.0,0.00023068,2]
[373205325,1752905455167,-2382.15,0.000231,7]
[373205326,1752905455177,-151.0,0.00023112,6]
[373205327,1752905455186,-1724.49,0.00023113,5]
[373205328,1752905455196,-951.0,0.00023116,2]
[373205329,1752905455206,-6635.69935498,0.00023123,2]
[373205330,1752905455216,-951.0,0.00023138,2]
[373205331,1752905455226,-151.0,0.00023141,7]
[373205332,1752905455236,-1724.49,0.00023213,2]
[373205333,1752905455246,-255.79144,0.00023216,3]
[373205334,1752905455257,-1292.0,0.00023238,2]
[373205335,1752905455266,-4760.15730783,0.00023245,8]
[373205336,1752905455276,-255.79144,0.00023258,6]
[373205337,1752905455286,-206.0,0.0002326,2]
[373205338,1752905455295,-255.79144,0.0002326,5]
[373205339,1752905455307,-154.105288,0.0002326,2]
[373205340,1752905455316,-153.0,0.0002326,2]
[373205341,1752905455326,-154.6575653,0.0002326,2]
[373205342,1752905455335,-153.0,0.0002326,2]
[373205343,1752905455345,-153.0,0.0002326,2]
[373205344,1752905455355,-153.0,0.0002326,2]
[373205345,1752905455364,-153.0,0.0002326,2]
[373205346,1752905455374,-151.0,0.00023298,7]
[373205347,1752905455384,-151.0,0.00023298,7]
[373205348,1752905455394,-1201.486897,0.00023298,7]
[373205349,1752905455404,-1201.486897,0.00023298,7]
[373205350,1752905455413,-1724.49,0.00023313,5]
[373205351,1752905455423,-255.79144,0.00023325,14]
[373205352,1752905455433,-1292.0,0.00023369,2]
[373205353,1752905455444,-255.79144,0.00023385,2]
[373205354,1752905455455,-223.0315306,0.00023393,2]
[373205355,1752905455464,-500.81129186,0.000234,2]
[373205356,1752905455474,-960.0,0.00023412,2]
[373205357,1752905455484,-1724.49,0.00023413,7]
[373205358,1752905455494,-1152.0,0.00023446,2]
[373205359,1752905455504,-255.79144,0.0002345,10]
[373205360,1752905455513,-500.0,0.00023456,2]
[373205361,1752905455525,-500.0,0.00023456,2]
[373205362,1752905455535,-160.0,0.000235,3]
[373205363,1752905455546,-951.0,0.00023507,2]
[373205364,1752905455556,-1724.49,0.00023513,3]
[373205365,1752905455566,-4760.15730783,0.00023521,9]
[373205366,1752905455575,-206.0,0.0002361,2]
[373205367,1752905455585,-1724.49,0.00023613,5]
[373205368,1752905455595,-151.0,0.0002363,6]
[373205369,1752905455605,-255.79144,0.0002365,14]
[373205370,1752905455614,-6635.69935498,0.0002367,2]
[373205371,1752905455624,-951.0,0.00023682,2]
[373205372,1752905455634,-1112.5965,0.000237,30]
[373205373,1752905455644,-1724.49,0.00023713,6]
[373205374,1752905455653,-951.0,0.00023714,2]
[373205375,1752905455662,-951.0,0.0002372,2]
[373205376,1752905455672,-153.0,0.00023726,2]
[373205377,1752905455681,-153.0,0.00023726,2]
[373205378,1752905455691,-153.0,0.00023726,2]
[373205379,1752905455701,-153.0,0.00023726,2]
[373205380,1752905455710,-153.0,0.00023726,2]
[373205381,1752905455720,-153.0,0.00023726,2]
[373205382,1752905455730,-153.0,0.00023726,2]
[373205383,1752905455739,-153.0,0.00023726,2]
[373205384,1752905455749,-153.0,0.00023726,2]
[373205385,1752905455759,-153.0,0.00023726,2]
[373205386,1752905455769,-153.0,0.00023726,2]
[373205387,1752905455778,-500.0,0.0002377,2]
[373205388,1752905455788,-951.0,0.00023794,2]
[373205389,1752905455798,-4760.15730783,0.00023797,9]
[373205390,1752905455809,-76425.42,0.000238,2]
[373205391,1752905455819,-151.0,0.000238,7]
[373205392,1752905455829,-151.0,0.000238,7]
[373205393,1752905455839,-179.790355,0.000238,7]
[373205394,1752905455849,-253.751263,0.000238,7]
[373205395,1752905455859,-253.751263,0.000238,7]
[373205396,1752905455868,-151.0,0.000238,7]
[373205397,1752905455878,-299.343065,0.000238,7]
[373205398,1752905455888,-228.289233,0.000238,7]
[373205399,1752905455898,-228.289233,0.000238,7]
[373205400,1752905455907,-309.301731,0.000238,7]
[373205401,1752905455917,-309.301731,0.000238,7]
[373205402,1752905455927,-151.0,0.000238,7]
[373205403,1752905455937,-203.956326,0.000238,7]
[373205404,1752905455946,-203.956326,0.000238,7]
[373205405,1752905455956,-200.919079,0.000238,7]
[373205406,1752905455966,-200.919079,0.000238,7]
[373205407,1752905455976,-160.429221,0.000238,7]
[373205408,1752905455986,-160.429221,0.000238,7]
[373205409,1752905455995,-1724.49,0.00023813,3]
[373205410,1752905456005,-255.79144,0.00023817,6]
[373205411,1752905456015,-1445.0674579,0.000239,2]
[373205412,1752905456024,-1724.49,0.00023913,7]
[373205413,1752905456034,-429.3901486,0.00023945,2]
[373205414,1752905456044,-429.3901486,0.00023945,2]
[373205415,1752905456055,-429.3901486,0.00023945,2]
[373205416,1752905456066,-429.3901486,0.00023945,2]
[373205417,1752905456076,-255.79144,0.00023948,10]
[373205418,1752905456086,-206.0,0.0002396,2]
[373205419,1752905456095,-1060.0,0.0002396,2]
[373205420,1752905456105,-255.79144,0.00023961,5]
[373205421,1752905456116,-255.79144,0.00023975,14]
[373205422,1752905456126,-160.0,0.00024,7]
[373205423,1752905456136,-390320.5792209,0.00024,30]
[373205424,1752905456145,-160.0,0.00024,7]
[373205425,1752905456155,-5978.43,0.00024,7]
[373205426,1752905456165,-20108.96,0.00024,7]
[373205427,1752905456175,-151.0,0.00024,7]
[373205428,1752905456185,-151.0,0.00024,7]
[373205429,1752905456194,-151.0,0.00024,7]
[373205430,1752905456203,-151.0,0.00024,7]
[373205431,1752905456213,-151.492024,0.00024,7]
[373205432,1752905456222,-151.0,0.00024,7]
[373205433,1752905456231,-151.0,0.00024,7]
[373205434,1752905456241,-151.0,0.00024,7]
[373205435,1752905456251,-185.983869,0.00024,7]
[373205436,1752905456261,-200.399393,0.00024,7]
[373205437,1752905456270,-200.399393,0.00024,7]
[373205438,1752905456280,-151.0,0.00024,7]
[373205439,1752905456290,-179.790355,0.00024,7]
[373205440,1752905456298,-178.585793,0.00024,7]
[373205441,1752905456310,-178.585793,0.00024,7]
[373205442,1752905456321,-386.078219,0.00024,7]
[373205443,1752905456331,-386.078219,0.00024,7]
[373205444,1752905456342,-253.751263,0.00024,7]
[373205445,1752905456352,-253.751263,0.00024,7]
[373205446,1752905456361,-151.0,0.00024,7]
[373205447,1752905456371,-228.289233,0.00024,7]
[373205448,1752905456381,-228.289233,0.00024,7]
[373205449,1752905456391,-309.301731,0.00024,7]